Cogmind - Beta 10.2 @@@ ROGUE MODE // 2021.07.25 @ 14:37:47 Player: Plexion Result: Destroyed by S-43 Plague with Heavy Machine Gun Performance ------------- Evolutions (9) 4500 Regions Visited (19) 3800 Robots Destroyed (306) 1530 Value Destroyed (13953) 13953 Prototype IDs (14) 280 Alien Tech Used (1) 200 Bonus (4556) 4556 TOTAL SCORE: 28819 Bonus ------- High Alert Combat Kills 1727 Follower Combat Kills 592 Entered Garrisons 800 Used RIF Installer 2000 Friendly Fire -563 Cogmind --------- Core Integrity 0/1600 Matter 266/300 Energy 100/100 System Corruption 20% Temperature Cool (0) Movement Core (50) Location -1/Access Parts ------- > --- POWER (2) -------- (None) > --- PROPULSION (8) --- (None) > --- UTILITY (13) ----- Improved Hacking Suite > --- WEAPON (2) ------- (None) > --- INVENTORY (4) ---- Dispersion Rifle Heavy Disruptor Cannon Force Lance Peak State ------------ > --- POWER ------------ Light Quantum Reactor Light Quantum Reactor > --- PROPULSION ------- Armored Heavy Treads Advanced Heavy Treads Advanced Heavy Siege Treads > --- UTILITY ---------- Advanced Heat Sink Large Storage Unit High-capacity Storage Unit Experimental Energy Well Advanced Melee Analysis Suite Advanced Melee Analysis Suite Advanced Melee Analysis Suite Advanced Melee Analysis Suite Advanced Melee Analysis Suite Advanced Launcher Guidance Computer Advanced Core Analyzer Hacking Suite > --- WEAPON ----------- Plasma Lance Plasma Lance > --- INVENTORY -------- Light Antimatter Reactor Light Particle Reactor Myomer Leg Myomer Leg Biometal Leg Dispersion Rifle Dispersion Rifle Heavy Disruptor Cannon Railgun Hardcell Cannon Linear Accelerator Gamma Bomb Array Advanced Remote Datajack [Rating: 154] Favorites ----------- Power F-cell Engine Engine F-cell Engine Power Core Micro Fission Core Reactor Light Antimatter Reactor Propulsion Light Treads Treads Light Treads Leg Aluminum Leg Wheel Armored Huge Wheel Flight Unit Xenon Bombardment Thruster Utility Large Storage Unit Device Advanced Heat Sink Storage Large Storage Unit Processor Advanced Melee Analysis Suite Hackware Relay Coupler [Sentry] Protection Light Armor Plating Weapon Heavy Assault Rifle Energy Gun Arc Projector Energy Cannon Plasma Cannon Ballistic Gun Heavy Assault Rifle Ballistic Cannon Hardcell Cannon Launcher Advanced EMP Blaster Special Weapon Remote Datajack Impact Weapon Thunder Hammer Slashing Weapon Great Axe Piercing Weapon Plasma Lance Build | -11 -10 -9 -9 -8 -8 -8 -7 -7 -7 -7 -6 -6 -5 -4 -3 -3 -3 -2 -1 ------- Run | Scr Mat Mat Min Mat Gar Sto Fac Gar Fac Gar Fac Gar Fac Fac Res Qua Sec Res Acc Slots Evolved 18 | . . 2 . 2 . . 2 . . . 2 . 2 2 2 . . 2 2 Power 1 | . . . . . . . . . . . . . 1 . . . . . . Propulsion 6 | . . . . 1 . . 1 . . . . . . . . . . 2 2 Utility 11 | . . 2 . 1 . . 1 . . . 2 . 1 2 2 . . . . Weapon . | . . . . . . . . . . . . . . . . . . . . Parts Attached 366 | 6 4 28 2 22 6 31 19 20 21 21 24 10 23 36 . 21 17 46 9 Power 30 | 1 1 2 . 1 1 2 . 1 . 1 1 . 5 2 . 1 2 8 1 Engine 11 | 1 1 2 . 1 1 2 . 1 . 1 . . 1 . . . . . . Core 7 | . . . . . . . . . . . 1 . 3 2 . . 1 . . Reactor 12 | . . . . . . . . . . . . . 1 . . 1 1 8 1 Propulsion 85 | 2 . 8 . 6 2 4 2 2 6 3 6 . 2 8 . 9 5 16 4 Treads 55 | 2 . 5 . 6 2 4 2 1 3 . 4 . . 6 . 2 5 10 3 Leg 12 | . . 1 . . . . . . 2 3 . . . . . . . 6 . Wheel 10 | . . 2 . . . . . 1 1 . 2 . 2 2 . . . . . Hover . | . . . . . . . . . . . . . . . . . . . . Flight 8 | . . . . . . . . . . . . . . . . 7 . . 1 Utility 98 | 1 2 4 . 8 1 9 5 2 7 3 6 3 8 11 . 3 6 16 3 Device 22 | . . . . . . 3 2 . 3 . 1 1 2 4 . 1 1 3 1 Storage 8 | 1 2 . . . . . . . . . . . 1 . . 1 2 1 . Processor 10 | . . . . . . . . . . . . . . . . 1 . 8 1 Hackware 14 | . . . . . . . . 2 1 2 2 2 1 1 . . 1 1 1 Protection 44 | . . 4 . 8 1 6 3 . 3 1 3 . 4 6 . . 2 3 . Artifact . | . . . . . . . . . . . . . . . . . . . . Weapon 153 | 2 1 14 2 7 2 16 12 15 8 14 11 7 8 15 . 8 4 6 1 Energy Gun 7 | . 1 2 . . . . . . . . . . . 2 . 2 . . . Energy Cannon 3 | . . . . . . . . . 2 . . . . . . . . 1 . Ballistic Gun 69 | 2 . 8 1 4 1 12 5 6 2 6 4 4 4 8 . 2 . . . Ballistic Cannon 4 | . . . . . . . . . . . . . . . . 3 1 . . Launcher 37 | . . 4 1 3 1 3 2 5 2 7 1 1 3 3 . . . 1 . Special Weapon 12 | . . . . . . . 1 2 2 1 2 1 . 2 . . . 1 . Impact Weapon 1 | . . . . . . . . . . . . . . . . 1 . . . Slashing Weapon 13 | . . . . . . 1 4 2 . . 4 1 1 . . . . . . Piercing Weapon 7 | . . . . . . . . . . . . . . . . . 3 3 1 Special Melee Weapon . | . . . . . . . . . . . . . . . . . . . . Unidentified Prototypes 15 | . . . . 1 . 3 . . . . 2 . . 1 . 5 3 . . Parts Lost 111 | . 1 1 . 5 2 12 2 4 2 5 3 1 9 21 . 7 1 19 16 Power 14 | . . . . . 1 1 . . . . . . 2 2 . 1 . 6 1 Propulsion 35 | . . 1 . . . 4 . 4 1 2 . . 1 4 . 4 . 6 8 Utility 46 | . . . . 4 . 5 2 . . 2 3 1 4 11 . . 1 7 6 Weapon 16 | . 1 . . 1 1 2 . . 1 1 . . 2 4 . 2 . . 1 Highest Loss Streak 6 | . 1 1 . 2 2 5 1 2 1 2 1 1 6 5 . 4 1 4 4 Average Slot Usage (%) 81 | . 99 93 100 97 98 97 99 95 96 93 87 77 73 66 4 15 47 74 34 Engine 4 | . 14 11 11 9 7 8 7 7 7 7 1 . 3 . . . . . . Core 1 | . . . . . . . . . . . 4 6 4 6 . . 2 . . Reactor 1 | . . . . . . . . . . . . . . 2 . . 2 6 2 Treads 15 | . 28 16 22 27 27 26 30 24 16 12 7 . . 5 . . 9 13 8 Leg 1 | . . 1 . . . . . . 2 8 3 . . . . . . 3 . Wheel 3 | . . 2 . . . . . 1 7 4 7 13 11 7 4 . . . . Device 5 | . . . . . . 13 14 8 11 7 9 5 3 7 . . 2 5 2 Storage 14 | . 27 22 22 18 18 18 15 15 15 15 13 13 11 9 . . 4 12 3 Processor 1 | . . . . . . . . . . . . . . . . 1 2 13 8 Hackware 5 | . . . . . . . . 5 7 4 19 19 16 5 . . 3 4 5 Protection 10 | . . 16 22 24 27 11 14 15 10 15 4 4 6 10 . . 3 2 1 Ballistic Gun 10 | . 22 19 21 17 17 17 11 11 9 13 8 9 8 5 . . . . . Piercing Weapon 1 | . . . . . . . . . . . . . . . . . 8 7 3 Naked Turns 12 | . . . . . . . . . . . . . . 3 . 9 . . . Heaviest Build 127 | 12 40 55 55 59 52 61 67 67 85 91 79 70 116 116 . 12 97 127 112 Greatest Support 210 | 40 40 40 40 65 65 66 80 80 60 48 98 56 56 56 3 32 130 210 206 Greatest Overweight (x) 13 | . . 13 1 . . 1 . 5 7 7 2 1 2 5 . 1 1 3 1 Average Overweight (x) . | . . 1 1 . . . . . 4 3 . . 1 1 . . . . . Largest Inventory Capacity 24 | 6 16 16 16 16 16 16 16 16 16 16 16 16 24 18 4 4 12 18 18 Average Capacity 15 | 4 15 16 16 16 16 16 16 16 16 16 16 16 17 17 4 4 11 17 7 Most Carried 18 | 2 3 16 16 16 16 16 16 16 16 16 16 16 17 18 4 4 12 18 15 Average Carried 12 | . 1 10 16 14 15 15 15 15 15 15 14 16 14 13 3 3 8 12 6 Final Capacity 18 | 6 16 16 16 16 16 16 16 16 16 16 16 16 18 4 4 4 12 18 4 Final Carried 16 | 2 3 16 16 16 16 16 16 16 16 14 16 16 16 4 4 4 12 15 4 Class Distribution -------------------- 42% | Scavenger-Mutant 31% | Mutant 21% | Bothacker-Mutant 4% | Commander-Mutant Dominant Class ---------------- Mutant | -10/Materials Scavenger-Mutant | -9/Materials Scavenger-Mutant | -9/Mines Scavenger-Mutant | -8/Materials Mutant | -8/Garrison Commander-Mutant | -8/Storage Scavenger-Mutant | -7/Factory Scavenger-Mutant | -7/Garrison Mutant | -7/Factory Bothacker-Mutant | -7/Garrison Bothacker-Mutant | -6/Factory Bothacker-Mutant | -6/Garrison Bothacker-Mutant | -5/Factory Scavenger-Mutant | -4/Factory Mutant | -3/Research Mutant | -3/Quarantine Mutant | -3/Section 7 Scavenger-Mutant | -2/Research Mutant | -1/Access Resources | -11 -10 -9 -9 -8 -8 -8 -7 -7 -7 -7 -6 -6 -5 -4 -3 -3 -3 -2 -1 ----------- Run | Scr Mat Mat Min Mat Gar Sto Fac Gar Fac Gar Fac Gar Fac Fac Res Qua Sec Res Acc Matter Collected 8136 | 232 240 656 43 586 231 793 467 406 217 624 473 547 688 615 . 337 238 727 16 Remotely . | . . . . . . . . . . . . . . . . . . . . Salvage Created 14228 | . 334 896 3 1233 276 1479 1013 1289 430 864 417 770 1217 1035 . 159 238 2511 64 Parts 794 | . 22 67 5 74 9 85 58 50 21 42 22 40 61 57 . 8 16 152 5 Haulers Intercepted 14 | . . 2 . 5 . 4 1 . . . 1 . . 1 . . . . . Recyclers Shooed 6 | . . . . 1 . . . . 1 . 2 . . 2 . . . . . Parts Field Recycled . | . . . . . . . . . . . . . . . . . . . . Retrieved Matter . | . . . . . . . . . . . . . . . . . . . . Parts Self-Destructed . | . . . . . . . . . . . . . . . . . . . . Prevented . | . . . . . . . . . . . . . . . . . . . . Kills | -11 -10 -9 -9 -8 -8 -8 -7 -7 -7 -7 -6 -6 -5 -4 -3 -3 -3 -2 -1 ------- Run | Scr Mat Mat Min Mat Gar Sto Fac Gar Fac Gar Fac Gar Fac Fac Res Qua Sec Res Acc Combat Hostiles Destroyed 243 | . 10 21 3 15 5 18 15 22 8 24 5 15 20 21 . 4 3 33 1 Melee 40 | . . . . . . . . . . . 2 . 4 . . 1 3 29 1 Guns 103 | . 9 12 1 10 5 15 8 5 2 7 3 6 9 9 . 2 . . . Cannons 4 | . . . . . . . . . 3 . . . . . . 1 . . . AOE 78 | . 1 9 2 3 . 3 6 14 2 15 . 7 5 11 . . . . . Classes Destroyed 15 | . 4 5 . 1 1 . 2 . . 1 . . . 1 . . . . . Worker 19 | . 1 2 . 2 . 6 3 . 1 . . . . 3 . . . 1 . Builder 12 | . 1 1 . 2 . 3 1 . . . . . . 4 . . . . . Hauler 14 | . . 2 . 5 . 4 1 . . . 1 . . 1 . . . . . Recycler 8 | . . 2 . 1 . 1 1 . 1 . 1 . 1 . . . . . . Operator 2 | . . . . . . . 1 . . . . . 1 . . . . . . Watcher 7 | . . 3 . 1 . 1 1 . . . . . . . . . . 1 . Swarmer 65 | . 3 13 3 . . . 3 4 3 13 . 4 8 4 . 3 . 4 . Saboteur 1 | . . . . . . . . . . . . . . 1 . . . . . Grunt 87 | . 7 2 . 9 2 10 5 14 1 8 . 4 5 9 . 1 1 9 . Brawler 7 | . . . . . 2 . . 1 . . . 1 1 . . . . 2 . Duelist 2 | . . 1 . . . . . 1 . . . . . . . . . . . Sentry 36 | . . 5 . 5 1 7 4 . . . 1 1 3 3 . . 2 4 . Specialist 2 | . . . . . . . . . . 2 . . . . . . . . . Hunter 17 | . . . . 1 . 2 2 2 2 . 1 3 3 . . . . 1 . Programmer 27 | . . . . . . . 1 . 2 1 3 2 . 4 . . . 13 1 Best Kill Streak 11 | . 3 9 3 11 3 9 7 8 6 8 2 7 6 7 . 2 1 5 1 Combat Bots Only 8 | . 3 4 3 3 3 3 4 8 5 8 2 7 6 6 . 2 1 5 1 Max Kills in Single Turn 5 | . 2 3 1 3 1 4 2 2 1 4 1 4 5 5 . 1 1 2 1 Gunslinging 1 | . . 1 . . . . . . . . . . . . . . . . . Exploded 5 | . 1 3 1 1 . 1 2 2 1 4 . 4 5 4 . . . . . Melee 1 | . . . . . . . . . . . 1 . 1 . . 1 1 1 1 Uniques/NPCs Destroyed . | . . . . . . . . . . . . . . . . . . . . Combat | -11 -10 -9 -9 -8 -8 -8 -7 -7 -7 -7 -6 -6 -5 -4 -3 -3 -3 -2 -1 -------- Run | Scr Mat Mat Min Mat Gar Sto Fac Gar Fac Gar Fac Gar Fac Fac Res Qua Sec Res Acc Damage Taken 29125 | . 566 662 107 1071 438 1868 777 783 727 1360 896 627 2569 3996 354 1399 516 6054 4355 Core 4850 | . 89 80 20 52 16 250 87 63 81 129 59 73 199 330 314 689 76 626 1617 Absorbed by Shields 173 | . . . . . 73 . . . . . . 40 . 60 . . . . . Core Remaining (%) 63 | 100 64 . 75 . . 42 . . . 48 . 84 80 71 . . 17 56 . Volleys Fired 745 | . 50 63 4 66 22 87 52 49 38 61 32 53 55 74 . 23 1 15 . Largest 2 | . 2 2 2 2 2 2 2 2 2 2 2 2 2 2 . 2 1 1 . Hottest 153 | . 60 65 46 46 46 51 53 50 80 60 45 70 70 90 . 153 66 110 . Shots Fired 1223 | . 100 120 5 125 41 169 85 56 43 88 42 84 105 118 . 26 1 15 . Gun 1034 | . 100 114 2 118 40 164 71 32 10 61 32 64 101 109 . 16 . . . Cannon 39 | . . . . . . . . . 21 . . . . . . 10 1 7 . Launcher 113 | . . 6 3 7 1 5 12 19 4 24 . 16 4 7 . . . 5 . Special 37 | . . . . . . . 2 5 8 3 10 4 . 2 . . . 3 . Kinetic 1000 | . 87 111 2 118 40 164 71 32 10 61 32 64 101 83 . 23 1 . . Thermal 39 | . 13 . . . . . 2 . 21 . . . . . . 3 . . . Explosive 20 | . . 5 3 . . 1 . . . 3 . . 1 7 . . . . . Electromagnetic 129 | . . 4 . 7 1 4 12 19 4 21 . 16 3 26 . . . 12 . Robot Hit Streak 28 | . 10 9 1 26 7 17 13 28 4 10 10 11 10 8 . 4 . 9 . Robot Miss Streak 6 | . 2 4 2 3 3 3 2 2 3 4 3 3 3 6 . 4 . 1 . Penetration Max 1 | . . . . . . . . . . . 1 1 1 . . . . . . Secondary Targets 8 | . 1 1 . . . 1 1 . . 1 . . 1 2 . . . . . Max Gunslinging Chain 1 | . 1 1 . . . 1 1 . . 1 . . 1 1 . . . . . Shots Hit Robots 973 | . 66 76 2 96 26 121 58 50 24 46 46 50 77 93 . 11 14 113 4 Core Hits 595 | . 21 41 3 42 10 57 40 33 14 38 14 26 42 113 . 9 8 74 10 Critical Hits 43 | . . 1 . 3 . . . . . 1 4 3 20 1 . 2 . 8 . Critical Kills 16 | . . . . 2 . . . . . . . 1 8 . . . . 5 . Critical Parts Destroyed 25 | . . 1 . 1 . . . . . 1 3 2 11 1 . 2 . 3 . Melee Attacks 207 | . . . . . . 1 5 12 . . 19 2 15 . . . 16 128 9 Impact . | . . . . . . . . . . . . . . . . . . . . Slashing 54 | . . . . . . 1 5 12 . . 19 2 15 . . . . . . Piercing 153 | . . . . . . . . . . . . . . . . . 16 128 9 Sneak Attacks 6 | . . . . . . . . . . . 3 . . . . . . 3 . Combat Hostiles 2 | . . . . . . . . . . . . . . . . . . 2 . Follow-up Attacks 20 | . . . . . . . . . . . . . . . . . 2 17 1 Damage Inflicted 30493 | . 713 1706 306 2086 488 2440 1479 2576 841 2468 1468 1710 2041 3454 . 334 561 5585 237 Guns 11107 | . 645 1100 13 1313 405 1908 818 399 104 502 656 718 920 1395 . 211 . . . Cannons 776 | . . . . . . . . . 448 . . . . . . 108 . 220 . Explosions 10906 | . 68 606 293 773 83 532 646 1245 289 1966 . 992 812 2059 . . . 542 . Melee 7601 | . . . . . . . . 932 . . 812 . 309 . . . 561 4823 164 Ramming 88 | . . . . . . . . . . . . . . . . 15 . . 73 Kinetic 10893 | . 580 1063 13 1313 405 1908 818 399 104 502 656 718 920 1175 . 319 . . . Thermal 1306 | . 65 59 . 14 . . 15 147 511 88 . 134 221 . . . . 52 . Explosive 3843 | . 68 485 293 . . 140 . . . 573 . . 177 2059 . . . 48 . Electromagnetic 6762 | . . 99 . 759 83 392 646 1098 226 1305 . 858 414 220 . . . 662 . Impact . | . . . . . . . . . . . . . . . . . . . . Slashing 2053 | . . . . . . . . 932 . . 812 . 309 . . . . . . Piercing 5548 | . . . . . . . . . . . . . . . . . 561 4823 164 Highest Corruption 35 | . . . . 1 1 2 1 3 7 10 4 9 9 19 . . . 35 20 Average Corruption 6 | . . . . 1 1 1 1 1 4 8 1 6 8 12 . . . 19 11 Corruption Purged 13 | . . . . . . . . . . . . . . . . . . 11 2 Effects 292 | . . . . 3 3 16 6 8 20 29 5 27 13 46 . . . 87 29 Message Errors 65 | . . . . . 2 4 1 2 6 11 . 7 5 6 . . . 15 6 Matter Fused 46 | . . . . . . . . . 3 4 . 6 2 8 . . . 14 9 Heat Flow Errors 17 | . . . . . . 3 . . 3 1 . 3 . 1 . . . 6 . Energy Discharges 33 | . . . . . 1 . 1 . 3 4 1 5 2 4 . . . 8 4 Parts Rejected 2 | . . . . . . . . . 1 . . . . . . . . . 1 Data Loss (minor) 30 | . . . . 1 . 3 2 3 3 1 1 1 1 5 . . . 8 1 Data Loss (major) 5 | . . . . . . . . . . 1 . 1 . . . . . 3 . Misfires 3 | . . . . . . . . . . 1 . . . 2 . . . . . Alerts 1 | . . . . . . . . . . . . . . . . . . 1 . Misdirections 24 | . . . . . . . . . . . . . . 5 . . . 11 8 Targeting Errors 61 | . . . . 2 . 6 2 2 1 3 3 4 3 14 . . . 21 . Weapon Failures 5 | . . . . . . . . 1 . 3 . . . 1 . . . . . Overload Shots . | . . . . . . . . . . . . . . . . . . . . Overflow Damage 932 | . . 35 50 17 . 7 2 198 2 41 164 24 75 4 . . . 313 . Projectiles 2 | . . . . . . . . . 2 . . . . . . . . . . Explosions 275 | . . 35 50 17 . 7 2 20 . 41 . 24 75 4 . . . . . Melee 655 | . . . . . . . . 178 . . 164 . . . . . . 313 . Knockbacks 1 | . . . . . . . . . . . . . . . . . . . 1 Impact 1 | . . . . . . . . . . . . . . . . . . . 1 Kinetic . | . . . . . . . . . . . . . . . . . . . . Secondary . | . . . . . . . . . . . . . . . . . . . . Self-Inflicted Damage 1194 | . 37 28 13 15 23 83 20 61 123 230 . 55 79 233 . 5 . 156 33 Shots 53 | . 1 1 1 1 1 3 1 4 5 10 . 2 4 11 . . . 8 . Rammed 29 | . . . . . . . . . . . . . . . . 10 . . 19 Targets Rammed 29 | . . . . . . . . . . . . . . . . 10 . . 19 Kicked . | . . . . . . . . . . . . . . . . . . . . Crushed . | . . . . . . . . . . . . . . . . . . . . Highest Temperature 385 | . 30 20 12 23 32 139 . . 255 143 . 241 382 366 . 385 . 161 . Average Temperature 108 | . 11 8 7 9 13 23 . . 116 62 . 96 187 172 . 217 . 68 . Received Heat Transfer 4179 | . 234 162 15 432 162 612 186 216 102 294 168 45 243 450 63 255 63 369 108 Effects 6 | . . . . . . . . . . . . . 3 2 . 1 . . . Shutdowns 1 | . . . . . . . . . . . . . 1 . . . . . . Energy Bleed 3 | . . . . . . . . . . . . . 2 . . 1 . . . Interference 2 | . . . . . . . . . . . . . . 2 . . . . . Siege Activations . | . . . . . . . . . . . . . . . . . . . . Robots Corrupted 18 | . . . . 2 . . 1 3 1 2 . 2 2 1 . . . 4 . Combat Hostiles 18 | . . . . 2 . . 1 3 1 2 . 2 2 1 . . . 4 . Parts Fried 40 | . . . . 4 . 2 6 6 3 6 . 4 2 3 . . . 4 . Impact Corruptions . | . . . . . . . . . . . . . . . . . . . . Robots Melted . | . . . . . . . . . . . . . . . . . . . . Combat Hostiles . | . . . . . . . . . . . . . . . . . . . . Parts Melted 6 | . 1 . . . . . . 1 3 . . 1 . . . . . . . Heat Transferred 1937 | . 150 100 . 50 . . 37 150 900 100 . 200 200 . . . . 50 . Parts Sabotaged . | . . . . . . . . . . . . . . . . . . . . Parts Stolen . | . . . . . . . . . . . . . . . . . . . . Parts Stripped . | . . . . . . . . . . . . . . . . . . . . Power Chain Reactions 17 | . . 1 . 2 . 1 3 3 1 2 . 3 . . . . . 1 . Missiles Intercepted . | . . . . . . . . . . . . . . . . . . . . Alert | -11 -10 -9 -9 -8 -8 -8 -7 -7 -7 -7 -6 -6 -5 -4 -3 -3 -3 -2 -1 ------- Run | Scr Mat Mat Min Mat Gar Sto Fac Gar Fac Gar Fac Gar Fac Fac Res Qua Sec Res Acc Peak Influence 1089 | . 296 397 211 343 286 428 456 953 499 956 550 555 1089 958 543 370 291 492 480 Initial 533 | . . 67 111 81 156 139 148 239 499 212 501 42 291 533 471 305 129 59 295 Average 330 | . 139 141 208 175 206 246 261 598 229 564 126 398 707 774 499 179 174 291 303 Maximum Alert Level 3 | . 1 1 1 1 1 2 2 3 2 3 2 2 3 3 2 1 1 2 2 Low Security (%) 36 | 100 71 73 4 64 69 28 40 . 45 . 87 18 . . . 64 69 24 9 Level 1 34 | . 28 26 95 35 30 66 43 22 40 24 . 16 27 . . 35 30 51 81 Level 2 18 | . . . . . . 4 15 45 14 44 12 65 12 43 100 . . 23 8 Level 3 10 | . . . . . . . . 31 . 31 . . 59 56 . . . . . Level 4 . | . . . . . . . . . . . . . . . . . . . . Level 5 . | . . . . . . . . . . . . . . . . . . . . High Security . | . . . . . . . . . . . . . . . . . . . . Max Security . | . . . . . . . . . . . . . . . . . . . . Squads Dispatched 46 | . 4 1 . 1 . 3 5 . 3 . 6 . 4 7 . 3 . 6 3 Investigation 8 | . 2 1 . . . . 1 . . . 1 . . 1 . . . 1 1 Extermination 9 | . . . . . . . 1 . 1 . 1 . . 2 . . . 4 . Reinforcement 22 | . 2 . . 1 . 2 3 . 2 . 2 . 2 2 . 3 . 1 2 Assault 3 | . . . . . . . . . . . . . 2 1 . . . . . Garrison 4 | . . . . . . 1 . . . . 2 . . 1 . . . . . Intercept . | . . . . . . . . . . . . . . . . . . . . Construction Impeded 4 | . . . . 1 . 1 . . . . . . 1 1 . . . . . Haulers Reinforced 3 | . . . . . . . 1 . . . 1 . . 1 . . . . . Stealth | -11 -10 -9 -9 -8 -8 -8 -7 -7 -7 -7 -6 -6 -5 -4 -3 -3 -3 -2 -1 --------- Run | Scr Mat Mat Min Mat Gar Sto Fac Gar Fac Gar Fac Gar Fac Fac Res Qua Sec Res Acc Distress Signals 24 | . 3 1 . 3 . 4 4 . . . . . 1 . . 1 1 4 2 Communications Jammed . | . . . . . . . . . . . . . . . . . . . . Distress Signals . | . . . . . . . . . . . . . . . . . . . . Times Spotted 434 | . 16 29 6 23 5 29 20 29 21 26 12 17 35 31 7 25 4 47 52 Peak Tracking Total 21 | . 5 5 3 5 3 4 5 7 7 5 3 4 5 5 6 11 2 8 21 Tactical Retreats 41 | . 1 . . . . 1 . 5 3 2 1 1 5 2 . 4 . 7 9 Traps | -11 -10 -9 -9 -8 -8 -8 -7 -7 -7 -7 -6 -6 -5 -4 -3 -3 -3 -2 -1 ------- Run | Scr Mat Mat Min Mat Gar Sto Fac Gar Fac Gar Fac Gar Fac Fac Res Qua Sec Res Acc Traps Triggered 51 | . 1 4 . . 2 2 5 8 1 8 . 13 . 4 . 1 1 1 . Indirectly 21 | . . . . . 1 . 5 4 . 5 . 6 . . . . . . . Trap Hack Attempts . | . . . . . . . . . . . . . . . . . . . . Triggered . | . . . . . . . . . . . . . . . . . . . . Disarmed . | . . . . . . . . . . . . . . . . . . . . Reprogrammed . | . . . . . . . . . . . . . . . . . . . . Reused . | . . . . . . . . . . . . . . . . . . . . Traps Extracted . | . . . . . . . . . . . . . . . . . . . . Installed . | . . . . . . . . . . . . . . . . . . . . Triggered 2 | . . . . . 1 . . 1 . . . . . . . . . . . Machines | -11 -10 -9 -9 -8 -8 -8 -7 -7 -7 -7 -6 -6 -5 -4 -3 -3 -3 -2 -1 ---------- Run | Scr Mat Mat Min Mat Gar Sto Fac Gar Fac Gar Fac Gar Fac Fac Res Qua Sec Res Acc Machines Disabled 29 | . 2 2 1 1 1 2 1 3 1 4 1 2 4 2 . . 1 1 . Max in Single Turn 3 | . 2 1 1 1 1 1 1 1 1 1 1 1 3 1 . . 1 1 . Garrison Access 8 | . . . . . . 1 . . . . . . 1 . 1 1 1 1 2 Garrison Relay 9 | . . . . . 1 . . 3 . 3 . 2 . . . . . . . Machines Sabotaged . | . . . . . . . . . . . . . . . . . . . . Garrisons Compromised . | . . . . . . . . . . . . . . . . . . . . Overloaded Fab Kills . | . . . . . . . . . . . . . . . . . . . . Fab Network Shutdowns 1 | . . . . . . . . . . . . . 1 . . . . . . Hacking | -11 -10 -9 -9 -8 -8 -8 -7 -7 -7 -7 -6 -6 -5 -4 -3 -3 -3 -2 -1 --------- Run | Scr Mat Mat Min Mat Gar Sto Fac Gar Fac Gar Fac Gar Fac Fac Res Qua Sec Res Acc Machines Accessed 56 | . 2 3 . 1 . 11 2 . 3 . 4 . 3 2 3 7 5 5 5 Terminals 40 | . 2 3 . . . 10 1 . 2 . 2 . 1 2 1 6 3 4 3 Fabricators 3 | . . . . . . . . . . . 1 . 1 . 1 . . . . Repair Stations 1 | . . . . . . . . . . . . . . . . . 1 . . Recycling Units . | . . . . . . . . . . . . . . . . . . . . Scanalyzers . | . . . . . . . . . . . . . . . . . . . . Garrison Access 12 | . . . . 1 . 1 1 . 1 . 1 . 1 . 1 1 1 1 2 Total Hacks 107 | . 5 8 . 1 . 20 2 . 5 . 9 . 5 6 5 11 11 11 8 Successful 52 | . 1 5 . 1 . 11 2 . 2 . 6 . 4 . 3 8 4 2 3 Failed 55 | . 4 3 . . . 9 . . 3 . 3 . 1 6 2 3 7 9 5 Catastrophic 12 | . 2 . . . . 3 . . . . . . 1 1 1 . . 3 1 Database Lockouts . | . . . . . . . . . . . . . . . . . . . . Manual 58 | . 5 7 . . . 11 1 . 3 . 3 . 2 6 . 7 8 4 1 Terminals 84 | . 5 8 . . . 19 1 . 4 . 4 . 2 6 1 10 8 10 6 Fabricators 9 | . . . . . . . . . . . 4 . 2 . 3 . . . . Repair Stations 2 | . . . . . . . . . . . . . . . . . 2 . . Recycling Units . | . . . . . . . . . . . . . . . . . . . . Scanalyzers . | . . . . . . . . . . . . . . . . . . . . Garrison Access 12 | . . . . 1 . 1 1 . 1 . 1 . 1 . 1 1 1 1 2 Terminal Hacks 22 | . 1 3 . . . 8 . . 1 . 3 . 1 . . 3 . 1 1 Record 1 | . . . . . . . . . . . . . . . . 1 . . . Part Schematic 2 | . . . . . . . . . . . 2 . . . . . . . . Robot Analysis 1 | . 1 . . . . . . . . . . . . . . . . . . Open Door 5 | . . . . . . 5 . . . . . . . . . . . . . Level Access Points 1 | . . . . . . . . . . . 1 . . . . . . . . Unreport Threat 8 | . . 1 . . . 2 . . 1 . . . . . . 2 . 1 1 Recall Reinforcements 1 | . . . . . . . . . . . . . 1 . . . . . . Zone Layout 3 | . . 2 . . . 1 . . . . . . . . . . . . . Fabricator Hacks 5 | . . . . . . . . . . . 1 . 2 . 2 . . . . Load Schematic 3 | . . . . . . . . . . . 1 . 1 . 1 . . . . Build 2 | . . . . . . . . . . . . . 1 . 1 . . . . Repair Station Hacks . | . . . . . . . . . . . . . . . . . . . . Recycling Unit Hacks . | . . . . . . . . . . . . . . . . . . . . Scanalyzer . | . . . . . . . . . . . . . . . . . . . . Garrison Access Hacks 12 | . . . . 1 . 1 1 . 1 . 1 . 1 . 1 1 1 1 2 Unlock Access 4 | . . . . 1 . . 1 . 1 . 1 . . . . . . . . Seal Access 8 | . . . . . . 1 . . . . . . 1 . 1 1 1 1 2 Unauthorized Hacks 13 | . . 2 . . . 2 1 . . . 1 . . . . 4 3 . . Terminals 13 | . . 2 . . . 2 1 . . . 1 . . . . 4 3 . . Track 9 | . . 2 . . . 2 . . . . . . . . . 3 2 . . Assimilate 1 | . . . . . . . . . . . . . . . . 1 . . . Botnet 1 | . . . . . . . 1 . . . . . . . . . . . . Disrupt 1 | . . . . . . . . . . . . . . . . . 1 . . Operators 1 | . . . . . . . . . . . 1 . . . . . . . . Fabricators . | . . . . . . . . . . . . . . . . . . . . Repair Stations . | . . . . . . . . . . . . . . . . . . . . Recycling Units . | . . . . . . . . . . . . . . . . . . . . Scanalyzers . | . . . . . . . . . . . . . . . . . . . . Garrison Access . | . . . . . . . . . . . . . . . . . . . . Data Cores Recovered . | . . . . . . . . . . . . . . . . . . . . Used . | . . . . . . . . . . . . . . . . . . . . Hacking Detections 37 | . 2 3 . 1 . 5 2 . 2 . 3 . 2 2 1 3 4 4 3 Full Trace Events 4 | . 1 . . . . . . . . . 1 . . 1 . . . . 1 Feedback Events 1 | . . . . . . . . . . . . . . . . . . . 1 Hackware Fried 1 | . . . . . . . . . . . . . . . . . . . 1 Feedback Blocked . | . . . . . . . . . . . . . . . . . . . . Robot Schematics Acquired . | . . . . . . . . . . . . . . . . . . . . Robots Built . | . . . . . . . . . . . . . . . . . . . . Matter . | . . . . . . . . . . . . . . . . . . . . Time . | . . . . . . . . . . . . . . . . . . . . Total Robot Build Rating . | . . . . . . . . . . . . . . . . . . . . Part Schematics Acquired 2 | . . . . . . . . . . . 2 . . . . . . . . Parts Built 2 | . . . . . . . . . . . . . 1 . 1 . . . . Matter 204 | . . . . . . . . . . . . . 102 . 102 . . . . Time 76 | . . . . . . . . . . . . . 51 . 25 . . . . Total Part Build Rating 2 | . . . . . . . . . . . . . 1 . 1 . . . . Parts Repaired . | . . . . . . . . . . . . . . . . . . . . Time . | . . . . . . . . . . . . . . . . . . . . Parts Recycled . | . . . . . . . . . . . . . . . . . . . . Recycled Matter . | . . . . . . . . . . . . . . . . . . . . Retrieved Matter . | . . . . . . . . . . . . . . . . . . . . Retrieved Components . | . . . . . . . . . . . . . . . . . . . . Parts Scanalyzed . | . . . . . . . . . . . . . . . . . . . . Part Schematics Acquired . | . . . . . . . . . . . . . . . . . . . . Parts Damaged . | . . . . . . . . . . . . . . . . . . . . Bothacking | -11 -10 -9 -9 -8 -8 -8 -7 -7 -7 -7 -6 -6 -5 -4 -3 -3 -3 -2 -1 ------------ Run | Scr Mat Mat Min Mat Gar Sto Fac Gar Fac Gar Fac Gar Fac Fac Res Qua Sec Res Acc Used RIF Installer 4 | . . . . . 1 . . 1 . 1 . 1 . . . . . . . Hotswap 1 | . . . . . . . . . . . . 1 . . . . . . . Watcher Feeds 1 | . . . . . . . . 1 . . . . . . . . . . . Autooverride 1 | . . . . . . . . . . 1 . . . . . . . . . Robots Hacked 18 | . . . . . . . . 4 2 1 5 5 . 1 . . . . . Non-combat 4 | . . . . . . . . . 1 . 3 . . . . . . . . Combat 14 | . . . . . . . . 4 1 1 2 5 . 1 . . . . . Autooverrided 3 | . . . . . . . . . . . . 3 . . . . . . . Robot Hacks Applied 19 | . . . . . . . . 4 4 1 7 2 . 1 . . . . . purge_threat 5 | . . . . . . . . . 2 . 3 . . . . . . . . mark_security 1 | . . . . . . . . . . . 1 . . . . . . . . find_garrison 1 | . . . . . . . . . 1 . . . . . . . . . . overload_power 1 | . . . . . . . . . . . 1 . . . . . . . . wipe_record 1 | . . . . . . . . 1 . . . . . . . . . . . reboot_system 1 | . . . . . . . . . . . . 1 . . . . . . . overwrite_iff 2 | . . . . . . . . 2 . . . . . . . . . . . formatsys_high 7 | . . . . . . . . 1 1 1 2 1 . 1 . . . . . Relay Couplers Released 34 | . . . . . 3 . . 11 3 10 . 7 . . . . . . . Machine Destruction 31 | . . . . . 3 . . 11 . 10 . 7 . . . . . . . Programmers 3 | . . . . . . . . . 3 . . . . . . . . . . Attached 11 | . . . . . . . . 2 1 2 2 2 1 1 . . . . . Robots Rewired 1 | . . . . . . . . . . . . . . . . . . 1 . Allies Hacked . | . . . . . . . . . . . . . . . . . . . . Hacks Repelled . | . . . . . . . . . . . . . . . . . . . . Allies | -11 -10 -9 -9 -8 -8 -8 -7 -7 -7 -7 -6 -6 -5 -4 -3 -3 -3 -2 -1 -------- Run | Scr Mat Mat Min Mat Gar Sto Fac Gar Fac Gar Fac Gar Fac Fac Res Qua Sec Res Acc Total Allies 27 | . . . . . . 10 3 3 1 1 2 4 . 1 . 1 . 1 . Largest Group 10 | . . . . . . 10 10 2 1 1 2 2 . 1 . 1 . 1 . Highest-Rated Group 218 | . . . . . . 173 218 32 32 32 58 58 . 56 . 26 . 69 . Highest-Rated Ally 69 | . . . . . . 29 31 16 32 32 29 41 . 56 . 26 . 69 . Total Orders 6 | . . . . . . . 2 . 1 . 1 . . . . 2 . . . ROAM 1 | . . . . . . . 1 . . . . . . . . . . . . EXPLORE 5 | . . . . . . . 1 . 1 . 1 . . . . 2 . . . Ally Attacks 173 | . . . . . . 58 48 10 3 8 24 10 . 7 . . . 5 . Total Damage 2776 | . . . . . . 739 529 166 100 330 360 176 . 131 . . . 245 . Kills 25 | . . . . . . 7 5 3 . 2 3 2 . 1 . . . 2 . Allies Corrupted 1 | . . . . . . 1 . . . . . . . . . . . . . Allies Melted . | . . . . . . . . . . . . . . . . . . . . Intel | -11 -10 -9 -9 -8 -8 -8 -7 -7 -7 -7 -6 -6 -5 -4 -3 -3 -3 -2 -1 ------- Run | Scr Mat Mat Min Mat Gar Sto Fac Gar Fac Gar Fac Gar Fac Fac Res Qua Sec Res Acc Robot Analysis Total 1 | . 1 . . . . . . . . . . . . . . . . . . Derelict Logs Recovered 1 | . . . 1 . . . . . . . . . . . . . . . . Drone Launches 5 | . . . . . . . 1 . 1 . 1 . . . . 2 . . . Drone Recoveries 4 | . . . . . . . . . 1 . 1 . . . . 2 . . . Exploration | -11 -10 -9 -9 -8 -8 -8 -7 -7 -7 -7 -6 -6 -5 -4 -3 -3 -3 -2 -1 ------------- Run | Scr Mat Mat Min Mat Gar Sto Fac Gar Fac Gar Fac Gar Fac Fac Res Qua Sec Res Acc Turns Passed 15088 | 85 477 1231 224 1040 417 1287 1049 765 709 831 893 869 971 938 108 565 502 1579 548 Spaces Moved 8845 | 51 199 565 118 491 216 571 485 380 368 356 556 611 626 477 207 739 280 742 807 Core 1130 | 6 . 1 . . . . . . . . . . . 56 207 132 41 . 687 Treads 4438 | 45 199 458 118 491 216 571 485 313 103 104 129 . . 139 . . 239 741 87 Legs 216 | . . 10 . . . . . . . 131 74 . . . . . . 1 . Wheels 2421 | . . 96 . . . . . 67 265 121 353 611 626 282 . . . . . Hover . | . . . . . . . . . . . . . . . . . . . . Flight 640 | . . . . . . . . . . . . . . . . 607 . . 33 Fastest Speed 26 | 50 160 110 180 155 155 155 160 140 140 150 100 100 100 50 50 26 50 150 40 Average Speed 128 | 147 160 171 180 155 155 169 160 158 156 173 130 106 111 130 50 43 147 158 60 Slowest Speed 700 | 160 160 700 180 160 155 180 160 220 220 220 180 110 120 200 50 100 170 220 180 Overloaded Moves 21 | . . . . . . . . . . . . . . . . 21 . . . Propulsion Burnouts . | . . . . . . . . . . . . . . . . . . . . Robots Hopped 8 | . . . . . . . . . . . . . . . . 8 . . . Cave-ins Triggered . | . . . . . . . . . . . . . . . . . . . . Exploration Rate (%) 39 | 4 46 67 29 46 44 90 21 74 14 75 19 63 20 14 6 87 13 20 29 Regions Visited 19 Branch Regions 4 Pre-discovered Areas . | . . . . . . . . . . . . . . . . . . . . Known Exits Taken 5 | . . . . 1 . 1 1 . 1 . 1 . . . . . . . . Unknown Exits Taken 10 | 1 1 1 1 . . . . . . . . . 1 1 1 1 1 1 . Scrap Searched 2 | . . . 2 . . . . . . . . . . . . . . . . Spaces Dug 41 | . . 15 . . . 10 5 . . . 2 . . . . 3 . 6 . Terrain Destroyed 523 | . 29 63 35 3 . 13 47 14 5 25 2 11 72 163 . 7 . 34 . Melee 13 | . . . . . . . 5 . . . 2 . . . . . . 6 . Projectile 23 | . . . . . . . . . 1 6 . . . 9 . 7 . . . AOE 487 | . 29 63 35 3 . 13 42 14 4 19 . 11 72 154 . . . 28 . Terrain Rammed . | . . . . . . . . . . . . . . . . . . . . Walls Destroyed . | . . . . . . . . . . . . . . . . . . . . Machines Disabled . | . . . . . . . . . . . . . . . . . . . . Actions | -11 -10 -9 -9 -8 -8 -8 -7 -7 -7 -7 -6 -6 -5 -4 -3 -3 -3 -2 -1 --------- Run | Scr Mat Mat Min Mat Gar Sto Fac Gar Fac Gar Fac Gar Fac Fac Res Qua Sec Res Acc Total 11061 | 59 264 699 123 643 259 752 689 483 457 480 662 750 764 663 211 942 343 965 853 Wait 532 | . 10 11 . 45 7 31 112 5 21 1 2 15 27 64 . 143 11 27 . Move 8815 | 50 198 564 117 491 215 570 485 379 368 355 556 610 625 476 206 723 279 741 807 Hop 7 | . . . . . . . . . . . . . . . . 7 . . . Pick Up 116 | 3 1 16 . 6 4 12 5 6 2 11 7 3 8 8 3 1 11 9 . Fast Attach 134 | 5 1 11 . 4 . 7 1 3 6 3 8 2 6 9 . 17 15 29 7 Attach 76 | 1 1 . . 5 2 11 3 1 2 5 4 . 8 14 . 4 1 12 2 Detach 53 | . . 3 . 2 . 4 . 1 2 2 8 . 5 2 . 5 1 15 3 Swap 157 | . 2 17 2 13 4 13 15 16 13 13 12 8 9 13 . . 2 5 . Drop 135 | . 1 14 . 11 5 14 8 7 5 10 14 5 6 3 2 9 8 6 7 Fire 745 | . 50 63 4 66 22 87 52 49 38 61 32 53 55 74 . 23 1 15 . Melee 181 | . . . . . . 1 5 12 . . 19 2 15 . . . 14 106 7 Ram 29 | . . . . . . . . . . . . . . . . 10 . . 19 Kick . | . . . . . . . . . . . . . . . . . . . . Crush 1 | . . . . . . . . . . . . . . . . . . . 1 Escape Stasis 78 | . . . . . . . 3 4 . 19 . 52 . . . . . . . Rewire 2 | . . . . . . 2 . . . . . . . . . . . . . Trap . | . . . . . . . . . . . . . . . . . . . . Miscellaneous . | . . . . . . . . . . . . . . . . . . . . Route ------- -11/Scrapyard -10/Materials -9/Materials (discovered 2 exits: *Mat / [*Min]) -9/Mines -8/Materials (discovered 4 exits: *Fac x2 / *Sto / Gar) -8/Garrison -8/Storage -7/Factory -7/Garrison (discovered 2 exits: *Fac x2) -7/Factory (discovered 2 exits: [*Low] / Gar) -7/Garrison (discovered 2 exits: *Fac x2) -6/Factory (discovered 5 exits: *Fac x4 / Gar) -6/Garrison (discovered 3 exits: *Fac x3) -5/Factory (discovered 3 exits: *Fac / [*Upp x2]) -4/Factory -3/Research -3/Quarantine (discovered 2 exits: *Res / *Sec) -3/Section 7 -2/Research -1/Access History --------- Turn | Location | Event 3 | -11/Scrapyard | Discovered new exit (range 16) 86 | -11/Scrapyard | Entered Materials 317 | -10/Materials | Build established: Mutant 472 | -10/Materials | Discovered new exit (range 10) 563 | -10/Materials | Entered another Materials area 563 | -9/Materials | Evolved 2 slots: Utility x2 1179 | -9/Materials | Build established: Scavenger-Mutant 1213 | -9/Materials | Discovered new exit (range 11) 1605 | -9/Materials | Discovered new exit (range 11) 1794 | -9/Materials | Entered Mines 1881 | -9/Mines | Learned 4 Materials zone layouts 2000 | -9/Mines | Discovered new exit (range 11) 2018 | -9/Mines | Entered Materials 2018 | -8/Materials | Evolved 2 slots: Propulsion x1, Utility x1 2019 | -8/Materials | Identified exit to Factory 2019 | -8/Materials | Discovered new exit (range 8) 3058 | -8/Materials | Identified exit to Garrison 3058 | -8/Materials | Entered Garrison 3121 | -8/Garrison | Triggered checkpoint 3138 | -8/Garrison | Build established: Mutant 3249 | -8/Garrison | Discovered new exit (range 10) 3274 | -8/Garrison | Installed Relay Interface Framework 3332 | -8/Garrison | Triggered checkpoint 3399 | -8/Garrison | Garrison Relay disabled 3475 | -8/Garrison | Entered Storage 3652 | -8/Storage | Lost 4 parts (1p2u1w) 3798 | -8/Storage | Lost 5 parts (1n3u1w) 3798 | -8/Storage | Garrison activated, responded to threat 3827 | -8/Storage | Core integrity fell below 50% 3910 | -8/Storage | Build established: Scavenger-Mutant 4076 | -8/Storage | Assisted by bots powering up and referring to "LRC-V3" 4370 | -8/Storage | Build established: Commander-Mutant 4699 | -8/Storage | Discovered exit to Factory (range 16) 4762 | -8/Storage | Entered Factory 4762 | -7/Factory | Accompanied by 8 allies 4762 | -7/Factory | Evolved 2 slots: Propulsion x1, Utility x1 5086 | -7/Factory | Build established: Scavenger-Mutant 5811 | -7/Factory | Identified exit to Garrison 5811 | -7/Factory | Entered Garrison 5836 | -7/Garrison | Triggered checkpoint 5872 | -7/Garrison | Garrison Relay disabled 5949 | -7/Garrison | Triggered checkpoint 6044 | -7/Garrison | Triggered checkpoint 6067 | -7/Garrison | Garrison Relay disabled 6113 | -7/Garrison | Discovered new exit (range 14) 6444 | -7/Garrison | Triggered checkpoint 6445 | -7/Garrison | Destroyed 8 combat bots 6490 | -7/Garrison | Garrison Relay disabled 6523 | -7/Garrison | Discovered new exit (range 15) 6553 | -7/Garrison | Expanded RIF knowledge: Patrol Navigation 6576 | -7/Garrison | Entered Factory 7180 | -7/Factory | Discovered new exit (range 12) 7285 | -7/Factory | Identified exit to Garrison 7285 | -7/Factory | Entered Garrison 7286 | -7/Garrison | Build established: Mutant 7320 | -7/Garrison | Triggered checkpoint 7362 | -7/Garrison | Garrison Relay disabled 7437 | -7/Garrison | Triggered checkpoint 7595 | -7/Garrison | Discovered new exit (range 10) 7647 | -7/Garrison | Triggered checkpoint 7698 | -7/Garrison | Build established: Bothacker-Mutant 7698 | -7/Garrison | Garrison Relay disabled 7787 | -7/Garrison | Triggered checkpoint 7799 | -7/Garrison | System corruption reached 10% 7842 | -7/Garrison | Triggered checkpoint 7882 | -7/Garrison | Destroyed 8 combat bots 7954 | -7/Garrison | Discovered new exit (range 9) 7981 | -7/Garrison | Expanded RIF knowledge: Autooverride 8012 | -7/Garrison | Triggered checkpoint 8027 | -7/Garrison | Core integrity fell below 50% 8070 | -7/Garrison | Garrison Relay disabled 8116 | -7/Garrison | Entered Factory 8116 | -6/Factory | Evolved 2 slots: Utility x2 8167 | -6/Factory | Identified exit to Factory 8766 | -6/Factory | Found Prototype Launcher 8766 | -6/Factory | Identified Rocket Array 8892 | -6/Factory | Garrison activated, responded to threat 9009 | -6/Factory | Identified exit to Garrison 9009 | -6/Factory | Entered Garrison 9046 | -6/Garrison | Triggered checkpoint 9086 | -6/Garrison | Garrison Relay disabled 9138 | -6/Garrison | Triggered checkpoint 9146 | -6/Garrison | Triggered checkpoint 9164 | -6/Garrison | Triggered checkpoint 9196 | -6/Garrison | Destroyed 7 combat bots 9222 | -6/Garrison | Discovered exit to Factory (range 9) 9600 | -6/Garrison | Triggered checkpoint 9633 | -6/Garrison | Garrison Relay disabled 9681 | -6/Garrison | Discovered exit to Factory (range 10) 9777 | -6/Garrison | Discovered exit to Factory (range 12) 9793 | -6/Garrison | Expanded RIF knowledge: Hotswap 9878 | -6/Garrison | Entered Factory 9878 | -5/Factory | Evolved 2 slots: Power x1, Utility x1 9946 | -5/Factory | Fabricated Hcp. Storage Unit (x1) 10267 | -5/Factory | Local fabrication network quarantined 10277 | -5/Factory | Discovered new exit (range 10) 10478 | -5/Factory | First assault squad dispatched 10509 | -5/Factory | Discovered new exit (range 11) 10554 | -5/Factory | Discovered new exit (range 16) 10655 | -5/Factory | Lost 6 parts (1n4u1w) 10849 | -5/Factory | Entered another Factory area 10849 | -4/Factory | Evolved 2 slots: Utility x2 10891 | -4/Factory | Build established: Mutant 11012 | -4/Factory | Spotted B-86 Titan 11233 | -4/Factory | System corruption reached 10% 11290 | -4/Factory | Lost 4 parts (1p2u1w) 11349 | -4/Factory | First assault squad dispatched 11499 | -4/Factory | Lost 5 parts (5u) 11560 | -4/Factory | Build established: Scavenger-Mutant 11702 | -4/Factory | Garrison activated, responded to threat 11731 | -4/Factory | Lost 4 parts (1p2u1w) 11751 | -4/Factory | Released all parts (9) 11779 | -4/Factory | Discovered new exit (range 13) 11787 | -4/Factory | Entered Research 11787 | -3/Research | Evolved 2 slots: Utility x2 11793 | -3/Research | Lost 5 parts (3n1u1w) 11820 | -3/Research | Fabricated Hcp. Storage Unit? 11857 | -3/Research | Spotted B-86 Titan 11882 | -3/Research | Spotted B-90 Cyclops 11887 | -3/Research | Discovered new exit (range 16) 11895 | -3/Research | Entered Quarantine 11915 | -3/Quarantine | Spotted Alpha 7 11950 | -3/Quarantine | Core integrity fell below 50% 12058 | -3/Quarantine | Build established: Mutant 12125 | -3/Quarantine | Found Gamma Bomb Array 12383 | -3/Quarantine | Discovered new exit (range 15) 12430 | -3/Quarantine | Spotted Fortress 12458 | -3/Quarantine | Discovered new exit (range 5) 12460 | -3/Quarantine | Entered Section 7 12462 | -3/Section 7 | Lost 4 parts (3n1w) 12705 | -3/Section 7 | Core integrity fell below 20% 12777 | -3/Section 7 | Found Alien Artifact 12777 | -3/Section 7 | Identified Integrated Dissipator 12777 | -3/Section 7 | Installed Integrated Dissipator, increased core heat dissipation (+20) 12884 | -3/Section 7 | Discovered new exit (range 16) 12962 | -3/Section 7 | Entered Research 12962 | -2/Research | Evolved 2 slots: Propulsion x2 13021 | -2/Research | Build established: Scavenger-Mutant 13235 | -2/Research | Lost 3 parts (2p1u) 13390 | -2/Research | Build established: Mutant 13603 | -2/Research | System corruption reached 10% 13772 | -2/Research | Lost 4 parts (1p2n1u) 14031 | -2/Research | System corruption reached 30% 14063 | -2/Research | Build established: Scavenger-Mutant 14068 | -2/Research | Lost 3 parts (2n1u) 14509 | -2/Research | Discovered new exit (range 11) 14541 | -2/Research | Entered Access 14541 | -1/Access | Evolved 2 slots: Propulsion x2 14750 | -1/Access | Lost 3 parts (3n) 14763 | -1/Access | System corruption reached 10% 14806 | -1/Access | Lost 4 parts (2n2u) 14837 | -1/Access | Hacking Suite fried by hacking feedback 14905 | -1/Access | Lost 4 parts (1n2u1w) 14952 | -1/Access | Core integrity fell below 50% 15050 | -1/Access | Build established: Mutant 15064 | -1/Access | Core integrity fell below 20% 15089 | -1/Access | Destroyed by S-43 Plague with Heavy Machine Gun Last Messages --------------- 15032_ Slug penetrates Wall. 15033_ U-05 Engineer lays Concrete. 15045_ System corrupted: Energy discharge (-35). 15047_ Adv. Target Analyzer destroyed. 15050_ Penetrated by Slug. 15050_ Slug penetrates Wall. 15050_ Slammed into S-43 Plague. 15053_ Penetrated by Slug. 15053_ Slug penetrates Door. 15056_ Slammed into S-43 Plague. 15060_ Hvy. Siege Treads destroyed. 15060_ Slammed into S-43 Plague. 15062_ P-80 Master resets P-80 Master, system corruption cleaned. 15068_ System corrupted: Matter fused (-9). 15069_ K-01 Serf destroyed. 15074_ P-80 Master resets S-43 Plague, system corruption cleaned. 15078_ Broken Adv. Target Analyzer destroyed. 15078_ Slammed into P-80 Master. 15083_ P-80 Master resets S-43 Plague, system corruption cleaned. 15087_ S-43 Plague destroyed. Map ----- +----------------------------------------------------+ | ?????????????????????????????????????????????????? | | ?????????????????????????????????????????????????? | | ?????????????????????????????????????????????????? | | ?????????????????????????????????????????????????? | | ?????????????????????????????????????????????????? | | ?????????????????????????????????????????????????? | | ?????????????????????????????????????????????????? | | ?????????????????????????????????????????????????? | | ?????????????????????????????????????????????????? | | ?????????????????????????????????????????????????? | | ?????????????????????????????????????????????????? | | ?????????????????????????????????????????????????? | | ?????????????????????????????????????????????????? | | ????????????????#+###########????????????????????? | | ?????????????? #????????????????????? | | ?????????????? #????????????????????? | | ??????????????? #????????????????????? | | ???????????????? +????????????????????? | | ????????????????? #????????????????????? | | ?????????????????? #????????????????????? | | ??????????????????? #????????????????????? | | ????????????????????# #????????????????????? | | ????????????????????# #????????????????????? | | ????????????????????# #????????????????????? | | ????????????????????# #????????????????????? | | ????????????????????# @ #????????????????????? | | ????????????????????# #????????????????????? | | ????????????????????# ########?????????????? | | ????????????????????# #?????????????? | | ????????????????????# #?????????????? | | ????????????????????# #?????????????? | | ????????????????????# #?????????????? | | ????????????????????# #?????????????? | | ????????????????????# #?????????????? | | """?????????????????# = #?????????????? | | """ ???????????????# =%######+####?????????????? | | ???????????????# s#???????????????????????? | | ???????????????# p#???????????????????????? | | ??????????????# s #???????????????????????? | | !??#### ######## p#???????????????????????? | | s#???????????????????????? | | ##????????# #???????????????????????? | | ########??# #???????????????????????? | | !!! ?# ###### #???????????????????????? | | !! ?# ???????#### #???????????????????????? | | !! ?#????????????# #???????????????????????? | | ??????????????# #???????????????????????? | | ??????????????# #???????????????????????? | | ???????????????# #???????????????????????? | | ???????????????# #???????????????????????? | +----------------------------------------------------+ Best States ------------- Heat Dissipation 114 Energy Generation 45 Energy Capacity 1430 Matter Stores 300 Matter Capacity 300 Sight Range 16 Terrain Scan Density 10 Armor Coverage 1200 Resistance: KI 30 Core Shielding 20 Evasion (%) 63 Melee Accuracy 40 Launcher Accuracy 40 Target Analysis 8 Core Analysis 10 Recoil Reduction 6 Offensive Hacking 20 Relay Coupler Types 82 Relay Coupler Value 4 Item Schematics ----------------- Hvy. Armor Plating | -6/Factory | Hacked Hcp. Storage Unit | -6/Factory | Hacked Robot Schematics ------------------ None Fabricated ------------ Hcp. Storage Unit | x1 | -5/Factory Hcp. Storage Unit | x1 | -3/Research Alien Tech Used ----------------- Integrated Dissipator Achievements -------------- None Challenges ------------ None Game ------ Seed EtherialTeslaAxe Manual? 0 Play Time 02:08:10 Cumulative 208.3 hours Start 2021.07.25 @ 12:37:04 End 2021.07.25 @ 14:37:47 Sessions 1 Manual Loads 0 Difficulty Rogue Special Mode None Game No. 267 Rogue 180 Adventurer 87 Explorer 0 Win Type - Total 4 Types 3/0/0/1/0/0/0/0/0 Lore% 69 Gallery% 77 Achievement% 62 Wizard Run 0 Options --------- ASCII 0 Keyboard 1 Movement Numpad Keybinds 0 Fullscreen 1 Font 18/Smallcaps Map View 76x50 Tactical HUD 1 Map Filters NONE Filters NONE Steam 1 RUN: e1ea7225-0200-4735-8140-f0d28283971b